bitfinex-derivatives/quotes_BNBF0:USTF0_20250608
["timestamp","ask_amount","ask_price","bid_price","bid_amount"]
[1749393772894,1.284,651.22,650.95,2.30105223]
[1749393774398,1.284,651.22,650.79,2.30105223]
[1749393776702,1.284,651.22,650.8,2.30105223]
[1749393779403,0.26726982,651.23,650.8,2.30105223]
[1749393779598,0.26726982,651.23,650.81,2.30105223]
[1749393782303,1.461,651.22,650.81,2.30105223]
[1749393782800,1.461,651.22,650.83,2.30105223]
[1749393784504,1.461,651.22,650.96,2.30105223]
[1749393785710,1.461,651.22,650.97,2.30105223]
[1749393790015,1.461,651.22,650.94,2.30105223]
[1749393792016,1.461,651.22,650.92,2.30105223]
[1749393792612,1.461,651.22,650.94,2.30105223]
[1749393792812,1.461,651.22,650.93,2.30105223]
[1749393793013,1.461,651.22,650.92,2.30105223]
[1749393793819,1.461,651.22,650.93,2.30105223]
[1749393796724,1.461,651.22,650.98,2.30105223]
[1749393798524,1.461,651.22,650.99,2.30105223]
[1749393798723,1.461,651.22,650.98,2.30105223]
[1749393799324,1.461,651.22,650.99,2.30105223]
[1749393799727,1.461,651.22,650.38,2.30105223]
[1749393799927,1.461,651.22,650.22,2.30105223]
[1749393800229,1.461,651.22,650.28,0.26730574]
[1749393800428,1.461,651.22,650.29,0.30755509]
[1749393803330,1.461,651.22,650.36,2.30105223]
[1749393803530,1.461,651.22,650.41,2.30105223]
[1749393804124,1.461,651.22,650.4,2.30105223]
[1749393805227,1.461,651.22,650.38,2.30105223]
[1749393805427,1.461,651.22,650.39,2.30105223]
[1749393805626,1.461,651.22,650.38,2.30105223]
[1749393807133,1.461,651.22,650.37,2.30105223]
[1749393807631,1.461,651.22,650.38,2.30105223]
[1749393808230,1.461,651.22,650.37,2.30105223]
[1749393808433,1.461,651.22,650.54,2.30105223]
[1749393808633,1.461,651.22,650.29,0.30755509]
[1749393808634,1.461,651.22,650.53,2.30105223]
[1749393809334,1.461,651.22,650.52,2.30105223]
[1749393809729,1.461,651.22,650.45,2.30105223]
[1749393809932,1.461,651.22,650.39,2.30105223]
[1749393810635,1.461,651.22,650.38,2.30105223]
[1749393811235,1.461,651.22,650.37,2.30105223]
[1749393812233,1.461,651.22,650.35,2.30105223]
[1749393812433,1.461,651.22,650.36,2.30105223]
[1749393812933,1.461,651.22,650.37,2.30105223]
[1749393813137,1.461,651.22,650.35,2.30105223]
[1749393814235,1.461,651.22,650.34,2.30105223]
[1749393815236,1.461,651.22,650.31,2.30105223]
[1749393816236,1.461,651.22,650.29,0.30755509]
[1749393816237,1.461,651.22,650.3,2.30105223]
[1749393817135,1.461,651.22,650.29,2.60860732]
[1749393817540,1.461,651.22,650.3,2.30105223]
[1749393818240,1.461,651.22,650.29,2.60860732]
[1749393819139,1.461,651.22,650.29,0.30755509]
[1749393819740,1.461,651.22,650.37,2.30105223]
[1749393820237,1.461,651.22,650.36,2.30105223]
[1749393822142,1.461,651.22,650.39,2.30105223]
[1749393823041,1.461,651.22,650.38,2.30105223]
[1749393824238,1.461,651.22,650.37,2.30105223]
[1749393824640,1.461,651.22,650.36,2.30105223]
[1749393824840,1.461,651.22,650.35,2.30105223]
[1749393825046,1.461,651.22,650.39,2.30105223]
[1749393825241,1.461,651.22,650.37,2.30105223]
[1749393826546,1.461,651.22,650.36,2.30105223]
[1749393827447,1.461,651.22,650.29,0.30755509]
[1749393827448,1.461,651.22,650.35,2.30105223]
[1749393828746,1.461,651.22,650.31,2.30105223]
[1749393829050,1.461,651.22,650.29,0.30755509]
[1749393829051,1.461,651.22,650.29,2.60860732]
[1749393829748,1.461,651.22,650.29,0.30755509]
[1749393830349,2.50456805,651.22,650.29,0.30755509]
[1749393830547,1.04356805,651.21,650.29,0.30755509]
[1749393830947,1.461,651.22,650.29,0.30755509]
[1749393831350,1.461,651.22,650.29,2.60860732]
[1749393831949,1.461,651.22,650.29,0.30755509]
[1749393832353,1.461,651.22,650.29,2.60860732]
[1749393832749,1.461,651.22,650.3,2.30105223]
[1749393834655,1.461,651.22,650.31,2.30105223]
[1749393834854,2.50456805,651.22,650.31,2.30105223]
[1749393835056,1.04356805,651.21,650.31,2.30105223]
[1749393835356,0.26726982,651.23,650.31,2.30105223]
[1749393836253,0.26726982,651.23,650.29,0.30755509]
[1749393838558,0.26726982,651.23,650.3,2.30105223]
[1749393839260,1.43,651.22,650.29,2.60860732]
[1749393840060,1.43,651.22,650.29,0.30755509]
[1749393848665,3.58180382,651.22,650.29,0.30755509]
[1749393848866,2.15231955,651.21,650.29,0.30755509]
[1749393849165,1.10875153,651.2,650.29,0.30755509]
[1749393849361,1.04356805,651.21,650.29,0.30755509]
[1749393849562,1.43,651.22,650.29,0.30755509]
[1749393860874,1.43,651.22,650.35,2.30105223]
[1749393861170,1.43,651.22,650.36,2.30105223]
[1749393861776,1.43,651.22,650.39,2.30105223]
[1749393862371,1.43,651.22,650.53,2.30105223]
[1749393862571,1.43,651.22,650.55,2.30105223]
[1749393863176,1.43,651.22,650.56,2.30105223]
[1749393864477,2.47356805,651.22,650.56,2.30105223]
[1749393864672,1.04356805,651.21,650.56,2.30105223]
[1749393865074,1.43,651.22,650.56,2.30105223]
[1749393866476,1.43,651.22,650.58,2.30105223]
[1749393869381,2.47356805,651.22,650.58,2.30105223]
[1749393869580,1.43,651.22,650.64,2.30105223]
[1749393870179,1.43,651.22,650.63,2.30105223]
[1749393870380,1.43,651.22,650.64,2.30105223]
[1749393871079,1.43,651.22,650.67,2.30105223]
[1749393871279,1.43,651.22,650.66,2.30105223]
[1749393871881,1.43,651.22,650.67,2.30105223]
[1749393872080,1.43,651.22,650.66,2.30105223]
[1749393872281,1.43,651.22,650.64,2.30105223]
[1749393872483,1.43,651.22,650.73,2.30105223]
[1749393873381,1.43,651.22,650.74,2.30105223]
[1749393873584,1.43,651.22,650.29,0.30755509]
[1749393875482,1.43,651.22,650.32,2.30105223]
[1749393875685,1.43,651.22,650.33,2.6085884]
[1749393875886,1.43,651.22,650.34,0.30753144]
[1749393876182,1.43,651.22,650.35,2.30105223]
[1749393876386,1.43,651.22,650.36,0.30752198]
[1749393876986,1.43,651.22,650.38,2.30105223]
[1749393877183,1.43,651.22,650.62,2.30105223]
[1749393877384,1.43,651.22,650.63,2.30105223]
[1749393877586,1.43,651.22,650.73,2.30105223]
[1749393878289,0.26726982,651.23,650.72,2.30105223]
[1749393879185,0.26726982,651.23,650.71,2.30105223]
[1749393879989,0.26726982,651.23,650.72,2.30105223]
[1749393880287,0.26726982,651.23,650.71,2.30105223]
[1749393880488,0.26726982,651.23,650.69,2.30105223]
[1749393880688,1.532,651.22,650.69,2.30105223]
[1749393880893,1.532,651.22,650.72,2.30105223]
[1749393881387,1.532,651.22,650.71,2.30105223]
[1749393882293,1.532,651.22,650.7,2.30105223]
[1749393883093,1.532,651.22,650.69,2.30105223]
[1749393883292,1.532,651.22,650.67,2.30105223]
[1749393884193,1.532,651.22,650.66,2.30105223]
[1749393884393,1.532,651.22,650.65,2.30105223]
[1749393885290,1.532,651.22,650.67,2.30105223]
[1749393886192,1.532,651.22,650.64,2.30105223]
[1749393887195,1.532,651.22,650.63,2.30105223]
[1749393890299,1.532,651.22,650.64,2.30105223]
[1749393890798,1.532,651.22,650.63,2.30105223]
[1749393892902,1.532,651.22,650.64,2.30105223]
[1749393894097,1.532,651.22,650.66,2.30105223]
[1749393894397,1.532,651.22,650.65,2.30105223]
[1749393896299,1.532,651.22,650.68,2.30105223]
[1749393899707,1.532,651.22,650.62,2.30105223]
[1749393900410,1.532,651.22,650.6,2.30105223]
[1749393903214,1.532,651.22,650.59,2.30105223]
[1749393903715,1.532,651.22,650.6,2.30105223]
[1749393904416,1.532,651.22,650.39,0.3075078]
[1749393906711,1.532,651.22,650.4,2.30105223]
[1749393906911,1.532,651.22,650.41,0.30749834]
[1749393907115,1.532,651.22,650.41,2.60855057]
[1749393907312,1.532,651.22,650.42,2.30105223]
[1749393907612,1.532,651.22,650.44,2.30105223]
[1749393907912,1.532,651.22,650.45,0.30747943]
[1749393909017,1.532,651.22,650.45,2.60853166]
[1749393909214,1.532,651.22,650.46,2.30105223]
[1749393910118,1.532,651.22,650.48,2.30105223]
[1749393910322,1.532,651.22,650.49,2.30105223]
[1749393910916,1.532,651.22,650.51,2.30105223]
[1749393911323,1.532,651.22,650.53,2.30105223]
[1749393911517,1.532,651.22,650.57,2.30105223]
[1749393912119,1.532,651.22,650.45,0.30747943]
[1749393912120,1.532,651.22,650.56,2.30105223]
[1749393912317,1.532,651.22,650.58,2.30105223]
[1749393912715,0.26726982,651.23,650.58,2.30105223]
[1749393912917,0.26726982,651.23,650.59,2.30105223]
[1749393913220,0.26726982,651.23,650.6,2.30105223]
[1749393913419,0.26726982,651.23,650.59,2.30105223]
[1749393913618,0.26726982,651.23,650.63,2.30105223]
[1749393914328,0.26726982,651.23,650.69,2.30105223]
[1749393914518,0.26726982,651.23,650.45,0.30747943]
[1749393914519,0.26726982,651.23,650.64,2.30105223]
[1749393914817,0.26726982,651.23,650.62,2.30105223]
[1749393915623,0.26726982,651.23,650.61,2.30105223]
[1749393916525,0.26726982,651.23,650.62,2.30105223]
[1749393916822,1.419,651.22,650.62,2.30105223]
[1749393917223,1.419,651.22,650.63,2.30105223]
[1749393918223,1.419,651.22,650.64,2.30105223]
[1749393919525,1.419,651.22,650.63,2.30105223]
[1749393919725,1.419,651.22,650.68,2.30105223]
[1749393920123,1.419,651.22,650.69,2.30105223]
[1749393921328,1.419,651.22,650.7,2.30105223]
[1749393923627,0.26734579,651.1,650.7,2.30105223]
[1749393933530,0.26734579,651.1,650.69,2.30105223]
[1749393934034,0.26734579,651.1,650.7,2.30105223]
[1749393934233,0.26734579,651.1,650.69,2.30105223]
[1749393934433,0.26734579,651.1,650.7,2.30105223]
[1749393934935,0.26734579,651.1,650.69,2.30105223]
[1749393939337,0.26734579,651.1,650.63,2.30105223]
[1749393940734,0.26734579,651.1,650.6,2.30105223]
[1749393941439,0.26734579,651.1,650.51,2.30105223]
[1749393947340,0.26734579,651.1,650.52,2.30105223]
[1749393947742,0.26734579,651.1,650.51,2.30105223]
[1749393948747,0.26734579,651.1,650.52,2.30105223]
[1749393949144,0.26734579,651.1,650.53,2.30105223]
[1749393949948,1.545,651.09,650.53,2.30105223]
[1749393950246,1.545,651.09,650.45,0.30747943]
[1749393950247,1.545,651.09,650.52,2.30105223]
[1749393950647,1.545,651.09,650.45,0.30747943]
[1749393950648,1.545,651.09,650.53,2.30105223]
[1749393951449,1.545,651.09,650.61,2.30105223]
[1749393952045,1.545,651.09,650.45,0.30747943]
[1749393952046,1.545,651.09,650.6,2.30105223]
[1749393954553,1.545,651.09,650.57,2.30105223]
[1749393955350,1.545,651.09,650.58,2.30105223]
[1749393958556,1.545,651.09,650.59,2.30105223]
[1749393958953,1.545,651.09,650.61,2.30105223]
[1749393959256,1.545,651.09,650.62,2.30105223]
[1749393960153,1.545,651.09,650.64,2.30105223]
[1749393961053,1.545,651.09,650.47,2.30105223]
[1749393961252,1.545,651.09,650.46,2.30105223]
[1749393961854,1.545,651.09,650.45,2.60853166]
[1749393962654,1.545,651.09,650.45,0.30747943]
[1749393964655,1.545,651.09,650.46,2.30105223]
[1749393966160,1.545,651.09,650.45,2.60853166]
[1749393967460,1.545,651.09,650.46,2.30105223]
[1749393968859,1.545,651.09,650.47,2.30105223]
[1749393971061,1.545,651.09,650.58,2.30105223]
[1749393971357,1.545,651.09,650.59,2.30105223]
[1749393972462,1.545,651.09,650.6,2.30105223]
[1749393972665,1.545,651.09,650.63,2.30105223]
[1749393977066,0.26734579,651.1,650.63,2.30105223]
[1749393980869,1.384,651.09,650.63,2.30105223]
[1749393985068,1.384,651.09,650.6,2.30105223]
[1749393992575,1.384,651.09,650.55,2.30105223]
[1749393993175,1.384,651.09,650.45,0.30747943]
[1749393993176,1.384,651.09,650.54,2.30105223]
[1749393993374,1.384,651.09,650.55,2.30105223]
[1749393994980,1.384,651.09,650.57,2.30105223]
[1749393995179,1.384,651.09,650.58,2.30105223]
[1749393996582,1.384,651.09,650.56,2.30105223]
[1749393997678,1.384,651.09,650.57,2.30105223]
[1749394001484,1.384,651.09,650.55,2.30105223]
[1749394002486,1.384,651.09,650.58,2.30105223]
[1749394002883,1.384,651.09,650.57,2.30105223]
[1749394003086,1.384,651.09,650.45,0.30747943]
[1749394003087,1.384,651.09,650.58,2.30105223]
[1749394006493,1.384,651.09,650.6,2.30105223]
[1749394009295,1.384,651.09,650.61,2.30105223]
[1749394009495,1.384,651.09,650.62,2.30105223]
[1749394010395,1.384,651.09,650.6,2.30105223]
[1749394010791,1.384,651.09,650.61,2.30105223]
[1749394011395,1.384,651.09,650.64,2.30105223]
[1749394012297,1.384,651.09,650.65,2.30105223]
[1749394012893,1.384,651.09,650.61,2.30105223]
[1749394014198,2.43053035,651.09,650.61,2.30105223]
[1749394014396,1.04653035,651.08,650.61,2.30105223]
[1749394014698,1.384,651.09,650.61,2.30105223]
[1749394016498,1.384,651.09,650.62,2.30105223]
[1749394016896,0.26734579,651.1,650.62,2.30105223]
[1749394017401,0.26734579,651.1,650.63,2.30105223]
[1749394017796,0.26734579,651.1,650.62,2.30105223]
[1749394018398,0.26734579,651.1,650.63,2.30105223]
[1749394019402,0.26734579,651.1,650.45,0.30747943]
[1749394019403,0.26734579,651.1,650.64,2.30105223]
[1749394020302,0.26734579,651.1,650.65,2.30105223]
[1749394020909,1.377,651.09,650.65,2.30105223]
[1749394021208,1.377,651.09,650.64,2.30105223]
[1749394022807,1.377,651.09,650.67,2.30105223]
[1749394024110,1.377,651.09,650.68,2.30105223]
[1749394025012,1.377,651.09,650.69,2.30105223]
[1749394026211,1.377,651.09,650.68,2.30105223]
[1749394027110,1.377,651.09,650.7,2.30105223]
[1749394027310,1.377,651.09,650.72,2.30105223]
[1749394027511,1.377,651.09,650.73,2.30105223]
[1749394028116,1.377,651.09,650.74,2.30105223]
[1749394028316,1.377,651.09,650.73,2.30105223]
[1749394028515,1.377,651.09,650.74,2.30105223]
[1749394032819,1.377,651.09,650.72,2.30105223]
[1749394033919,1.377,651.09,650.71,2.30105223]
[1749394035218,1.377,651.09,650.7,2.30105223]
[1749394035917,1.377,651.09,650.71,2.30105223]
[1749394036219,1.377,651.09,650.72,2.30105223]
[1749394036420,1.377,651.09,650.71,2.30105223]
[1749394036622,1.377,651.09,650.72,2.30105223]
[1749394038121,1.377,651.09,650.71,2.30105223]
[1749394038520,1.377,651.09,650.72,2.30105223]
[1749394039718,1.377,651.09,650.71,2.30105223]
[1749394040323,1.377,651.09,650.63,2.30105223]
[1749394041219,1.377,651.09,650.62,2.30105223]
[1749394042625,1.377,651.09,650.63,2.30105223]
[1749394044626,1.377,651.09,650.64,2.30105223]
[1749394045326,1.377,651.09,650.61,2.30105223]
[1749394048629,1.377,651.09,650.57,2.30105223]
[1749394050332,1.377,651.09,650.6,2.30105223]
[1749394051432,1.377,651.09,650.61,2.30105223]
[1749394053433,1.377,651.09,650.6,2.30105223]
[1749394053835,1.04657731,651.08,650.45,0.30747943]
[1749394054037,1.04657731,651.07,650.45,0.30747943]
[1749394054232,1.04657731,651.08,650.45,0.30747943]
[1749394054437,1.04657731,651.07,650.45,0.30747943]
[1749394054635,1.04657731,651.06,650.45,0.30747943]
[1749394054834,1.04657731,651.05,650.45,0.30747943]
[1749394055034,1.377,651.09,650.45,0.30747943]
[1749394055035,1.04657731,651.08,650.45,0.30747943]
[1749394055233,1.04657731,651.07,650.45,0.30747943]
[1749394055432,1.04657731,651.06,650.45,0.30747943]
[1749394055637,1.04657731,651.08,650.45,0.30747943]
[1749394055836,1.04657731,651.07,650.45,0.30747943]
[1749394056034,1.04657731,651.06,650.45,0.30747943]
[1749394056237,1.04657731,651.08,650.45,0.30747943]
[1749394056436,1.04657731,651.07,650.45,0.30747943]
[1749394056634,1.04657731,651.08,650.45,0.30747943]
[1749394056834,1.04657731,651.07,650.45,0.30747943]
[1749394057033,1.04657731,651.08,650.45,0.30747943]
[1749394059039,2.42357731,651.09,650.45,0.30747943]
[1749394060239,1.377,651.09,650.45,0.30747943]
[1749394063837,1.377,651.09,650.45,2.60853166]
[1749394064241,1.377,651.09,650.45,2.30105223]
[1749394065336,1.377,651.09,650.44,2.30105223]
[1749394067138,1.377,651.09,650.43,2.30105223]
[1749394067942,1.377,651.09,650.49,2.30105223]
[1749394069945,0.26734579,651.1,650.49,2.30105223]
[1749394070143,0.26734579,651.1,650.5,2.30105223]
[1749394070847,0.26734579,651.1,650.52,2.30105223]
[1749394073346,1.106,651.09,650.54,2.30105223]
[1749394073846,1.106,651.09,650.56,2.30105223]
[1749394074743,1.106,651.09,650.55,2.30105223]
[1749394077344,1.106,651.09,650.54,2.30105223]
[1749394077549,1.106,651.09,650.53,2.30105223]
[1749394079248,2.15257731,651.09,650.53,2.30105223]
[1749394079447,1.04657731,651.08,650.49,2.30105223]
[1749394079847,1.106,651.09,650.5,2.30105223]
[1749394080848,1.106,651.09,650.49,2.30105223]
[1749394082150,1.106,651.09,650.48,2.30105223]
[1749394082654,1.106,651.09,650.49,2.30105223]
[1749394082854,1.106,651.09,650.48,2.30105223]
[1749394087156,1.106,651.09,650.5,2.30105223]
[1749394087357,1.106,651.09,650.51,2.30105223]
[1749394089355,1.106,651.09,650.55,2.30105223]
[1749394090059,1.106,651.09,650.54,2.30105223]
[1749394090255,1.106,651.09,650.55,2.30105223]
[1749394091861,1.106,651.09,650.4,2.30105223]
[1749394093560,1.106,651.09,650.41,2.30105223]
[1749394094463,0.26734579,651.1,650.41,2.30105223]
[1749394095461,0.26734579,651.1,650.42,2.30105223]
[1749394095660,0.26734579,651.1,650.41,2.30105223]
[1749394096866,1.082,651.09,650.41,2.30105223]
[1749394098466,1.082,651.09,650.42,2.30105223]
[1749394100763,2.12857731,651.09,650.42,2.30105223]
[1749394101064,1.04657731,651.08,650.42,2.30105223]
[1749394101264,1.04657731,651.08,650.43,2.30105223]
[1749394101665,1.082,651.09,650.53,2.30105223]
[1749394103066,1.082,651.09,650.52,2.30105223]
[1749394104270,1.082,651.09,650.48,2.30105223]
[1749394105668,1.082,651.09,650.49,2.30105223]
[1749394106167,1.082,651.09,650.5,2.30105223]
[1749394107370,1.082,651.09,650.51,2.30105223]
[1749394108268,2.12857731,651.09,650.51,2.30105223]
[1749394108466,1.04657731,651.08,650.51,2.30105223]
[1749394108770,1.082,651.09,650.51,2.30105223]
[1749394109274,1.082,651.09,650.52,2.30105223]
[1749394111371,1.082,651.09,650.53,2.30105223]
[1749394111973,1.082,651.09,650.56,2.30105223]
[1749394112370,1.082,651.09,650.57,2.30105223]
[1749394112868,1.082,651.09,650.58,2.30105223]
[1749394113271,1.04657731,651.08,650.59,2.30105223]
[1749394113470,1.04657731,651.07,650.59,2.30105223]
[1749394113774,1.04657731,651.08,650.59,2.30105223]
[1749394114074,1.04657731,651.08,650.63,2.30105223]
[1749394116268,1.04657731,651.07,650.61,2.30105223]
[1749394116469,1.04657731,651.08,650.61,2.30105223]
[1749394116672,1.04657731,651.07,650.6,2.30105223]
[1749394116870,1.04657731,651.08,650.57,2.30105223]
[1749394117170,1.04657731,651.07,650.55,2.30105223]
[1749394117368,1.04657731,651.08,650.56,2.30105223]
[1749394117571,1.04657731,651.07,650.56,2.30105223]
[1749394117769,1.04657731,651.08,650.55,2.30105223]
[1749394117971,1.04657731,651.07,650.55,2.30105223]
[1749394118270,1.04657731,651.08,650.55,2.30105223]
[1749394118471,1.04657731,651.07,650.55,2.30105223]
[1749394118770,1.04657731,651.08,650.55,2.30105223]
[1749394118969,1.04657731,651.07,650.55,2.30105223]
[1749394119170,1.04657731,651.08,650.55,2.30105223]
[1749394119370,1.04657731,651.07,650.55,2.30105223]
[1749394119571,1.04657731,651.08,650.55,2.30105223]
[1749394119771,1.04657731,651.07,650.55,2.30105223]
[1749394119974,1.04657731,651.08,650.55,2.30105223]
[1749394120174,1.04657731,651.07,650.55,2.30105223]
[1749394120375,1.04657731,651.08,650.55,2.30105223]
[1749394120572,1.04657731,651.07,650.55,2.30105223]
[1749394120873,1.04657731,651.06,650.55,2.30105223]
[1749394121070,1.04657731,651.08,650.55,2.30105223]
[1749394121272,1.04657731,651.07,650.55,2.30105223]
[1749394121469,1.04657731,651.06,650.55,2.30105223]
[1749394121770,1.04657731,651.08,650.55,2.30105223]
[1749394121974,1.04657731,651.07,650.55,2.30105223]
[1749394122171,1.04657731,651.06,650.55,2.30105223]
[1749394122370,1.04657731,651.08,650.55,2.30105223]
[1749394122572,1.04657731,651.07,650.55,2.30105223]
[1749394122777,1.04657731,651.06,650.55,2.30105223]
[1749394122977,1.04657731,651.08,650.55,2.30105223]
[1749394123179,1.04657731,651.07,650.55,2.30105223]
[1749394123380,1.04657731,651.08,650.55,2.30105223]
[1749394123580,1.04657731,651.07,650.55,2.30105223]
[1749394123780,1.04657731,651.08,650.55,2.30105223]
[1749394123988,0.26738995,650.95,650.55,2.30105223]
[1749394124778,0.26738995,650.95,650.56,2.30105223]
[1749394125882,0.26738995,650.95,650.55,2.30105223]
[1749394126278,0.26738995,650.95,650.57,2.30105223]
[1749394126478,0.26738995,650.95,650.55,2.30105223]
[1749394126678,0.26738995,650.95,650.56,2.30105223]
[1749394126883,0.26738995,650.95,650.57,2.30105223]
[1749394127078,0.26738995,650.95,650.59,2.30105223]
[1749394127582,0.26738995,650.95,650.58,2.30105223]
[1749394127777,0.26738995,650.95,650.59,2.30105223]
[1749394130584,0.26738995,650.95,650.56,2.30105223]
[1749394131284,0.26738995,650.95,650.58,2.30105223]
[1749394133678,1.431,650.94,650.58,2.30105223]
[1749394135890,1.431,650.94,650.57,2.30105223]
[1749394136387,1.431,650.94,650.05,3.8359322]
[1749394136388,1.431,650.94,650.59,2.30105223]
[1749394137191,1.431,650.94,650.58,2.30105223]
[1749394140295,1.431,650.94,650.65,2.30105223]
[1749394141994,1.431,650.94,650.66,2.30105223]
[1749394142291,1.431,650.94,650.65,2.30105223]
[1749394142495,1.431,650.94,650.69,2.30105223]
[1749394142794,1.431,650.94,650.03,0.26741564]
[1749394142795,1.431,650.94,650.65,2.30105223]
[1749394143193,1.431,650.94,650.64,2.30105223]
[1749394143594,1.431,650.94,650.65,2.30105223]
[1749394143794,1.431,650.94,650.64,2.30105223]
[1749394145294,1.431,650.94,650.63,2.30105223]
[1749394145695,1.431,650.94,650.61,2.30105223]
[1749394146997,1.431,650.94,650.6,2.30105223]
[1749394147802,0.26736427,651.04,650.6,2.30105223]
[1749394148305,0.26736427,651.04,650.59,2.30105223]
[1749394149904,0.26736427,651.04,650.58,2.30105223]
[1749394150704,1.407,651.03,650.58,2.30105223]
[1749394152702,1.407,651.03,650.64,2.30105223]
[1749394155010,1.407,651.03,650.63,2.30105223]
[1749394155610,1.407,651.03,650.66,2.30105223]
[1749394156410,1.407,651.03,650.68,2.30105223]
[1749394157110,1.407,651.03,650.67,2.30105223]
[1749394158008,1.407,651.03,650.68,2.30105223]
[1749394158907,1.407,651.03,650.65,2.30105223]
[1749394159708,1.407,651.03,650.19,3.8359322]
[1749394159904,1.407,651.03,650.2,0.30759766]
[1749394164712,1.407,651.03,650.25,2.30105223]
[1749394165013,1.407,651.03,650.26,0.30756927]
[1749394165313,1.407,651.03,650.31,2.30105223]
[1749394165506,1.407,651.03,650.32,0.3075409]
[1749394167913,1.407,651.03,650.33,2.30105223]
[1749394168909,1.407,651.03,650.32,2.60859313]
[1749394169108,1.407,651.03,650.33,2.30105223]
[1749394170516,1.407,651.03,650.49,2.30105223]
[1749394171817,1.407,651.03,650.59,2.30105223]
[1749394172616,1.407,651.03,650.58,2.30105223]
[1749394173816,1.407,651.03,650.59,2.30105223]
[1749394174413,1.407,651.03,650.65,2.30105223]
[1749394175216,1.407,651.03,650.32,0.3075409]
[1749394175217,1.407,651.03,650.66,2.30105223]
[1749394175815,0.26736427,651.04,650.66,2.30105223]
[1749394176617,0.26736427,651.04,650.65,2.30105223]
[1749394176820,0.26736427,651.04,650.64,2.30105223]
[1749394177022,0.26736427,651.04,650.65,2.30105223]
[1749394177314,0.26736427,651.04,650.64,2.30105223]
[1749394178316,1.522,651.03,650.64,2.30105223]
[1749394178520,1.522,651.03,650.61,2.30105223]
[1749394178819,1.522,651.03,650.62,2.30105223]
[1749394179419,1.522,651.03,650.63,2.30105223]
[1749394179820,1.522,651.03,650.64,2.30105223]
[1749394180020,1.522,651.03,650.67,2.30105223]
[1749394180223,1.522,651.03,650.68,2.30105223]
[1749394183526,1.522,651.03,650.69,2.30105223]
[1749394184224,1.522,651.03,650.68,2.30105223]
[1749394184427,1.522,651.03,650.69,2.30105223]
[1749394185629,1.522,651.03,650.68,2.30105223]
[1749394187627,1.522,651.03,650.69,2.30105223]
[1749394187827,1.522,651.03,650.7,2.30105223]
[1749394188429,1.522,651.03,650.72,2.30105223]
[1749394188730,1.522,651.03,650.71,2.30105223]
[1749394189231,1.522,651.03,650.76,2.30105223]
[1749394189833,1.522,651.03,650.77,2.30105223]
[1749394190526,1.522,651.03,650.71,2.30105223]
[1749394195635,1.522,651.03,650.72,2.30105223]
[1749394196536,1.522,651.03,650.71,2.30105223]
[1749394198741,1.522,651.03,650.72,2.30105223]
[1749394200139,1.522,651.03,650.73,2.30105223]
[1749394200344,1.522,651.03,650.77,2.30105223]
[1749394200842,1.522,651.03,650.76,2.30105223]
[1749394201544,1.522,651.03,650.77,2.30105223]
[1749394201945,0.26734989,651.0,650.77,2.30105223]
[1749394202640,0.26734989,651.0,650.78,2.30105223]
[1749394204943,0.26734989,651.0,650.72,2.30105223]
[1749394205247,0.26734989,651.0,650.73,2.30105223]
[1749394206042,0.26734989,651.0,650.74,2.30105223]
[1749394207343,0.26734989,651.0,650.65,2.30105223]
[1749394210850,0.26734989,651.0,650.32,0.3075409]
[1749394210851,0.26734989,651.0,650.66,2.30105223]
[1749394212654,0.26734989,651.0,650.65,2.30105223]
[1749394213551,0.26734989,651.0,650.66,2.30105223]
[1749394214050,0.26734989,651.0,650.67,2.30105223]
[1749394214551,0.26734989,651.0,650.66,2.30105223]
[1749394214755,0.26734989,651.0,650.68,2.30105223]
[1749394215453,0.26734989,651.0,650.67,2.30105223]
[1749394216456,0.26734989,651.0,650.66,2.30105223]
[1749394216659,0.26734989,651.0,650.65,2.30105223]
[1749394217257,0.26734989,651.0,650.73,2.30105223]
[1749394220970,0.26734989,651.0,650.74,2.30105223]
[1749394223170,0.26734989,651.0,650.32,0.3075409]
[1749394223171,0.26734989,651.0,650.75,2.30105223]